Cogmind - Beta 16 @@@ ROGUE MODE // 2025.11.23 @ 09:07:06 Player: 3.14 Result: Destroyed by KF-US1(R) with Subdweller Shrapnel Launcher Performance ------------- Evolutions (0) 0 Regions Visited (3) 600 Robots Destroyed (31) 155 Value Destroyed (746) 746 Prototype IDs (2) 40 Alien Tech Used (0) 0 Bonus (18) 18 TOTAL SCORE: 1559 Bonus ------- Follower Combat Kills 37 Friendly Fire -19 Cogmind --------- Core Integrity 0/250 Matter 180/300 Energy 250/250 System Corruption 0% Temperature Cool (0) Movement Treading (320) Ox2 Location -10/Subcaves Parts ------- > --- POWER (1) -------- Ion Engine > --- PROPULSION (2) --- Light Treads Light Treads > --- UTILITY (2) ------ Huge Storage Unit Targeting Computer > --- WEAPON (2) ------- Subdweller Machine Gun > --- INVENTORY (25) --- Ion Engine Light Treads Light Treads Light Treads High-capacity Matter Pod (200) Seismic Detector Transport Network Coupler Light Armor Plating Light Armor Plating Medium Laser Particle Gun Subdweller Laser Light Assault Rifle Light Assault Rifle Light Assault Rifle Subdweller Machine Gun Grenade Launcher Grenade Launcher Grenade Launcher Rocket Launcher Subdweller Shrapnel Launcher Datajack Mining Claw Peak State ------------ > --- POWER ------------ Ion Engine > --- PROPULSION ------- Light Treads Light Treads > --- UTILITY ---------- Huge Storage Unit Targeting Computer > --- WEAPON ----------- Particle Gun Assault Rifle > --- INVENTORY -------- Ion Engine Light Treads Light Treads Light Treads Light Treads Large Storage Unit High-capacity Matter Pod Seismic Detector Transport Network Coupler Medium Laser Particle Gun Light Assault Rifle Light Assault Rifle Light Assault Rifle Grenade Launcher Grenade Launcher Grenade Launcher Datajack Mining Laser [Rating: 10] Favorites ----------- Power Ion Engine Engine Ion Engine Propulsion Light Treads Treads Light Treads Utility Targeting Computer Device Seismic Detector Storage Huge Storage Unit Processor Targeting Computer Weapon Assault Rifle Energy Gun Particle Gun Energy Cannon Beam Cannon Ballistic Gun Assault Rifle Launcher Subdweller Shrapnel Launcher Special Weapon Mining Laser Slashing Weapon Mining Claw Build | -11 -10 -10 -10 ------- Run | Yrd Mat Min Sub Slots Evolved . | . . . . Power . | . . . . Propulsion . | . . . . Utility . | . . . . Weapon . | . . . . Parts Attached 24 | 7 7 3 7 Power 3 | 1 2 . . Engine 3 | 1 2 . . Core . | . . . . Reactor . | . . . . Propulsion 5 | 2 . 1 2 Treads 5 | 2 . 1 2 Leg . | . . . . Wheel . | . . . . Hover . | . . . . Flight . | . . . . Utility 6 | 2 4 . . Device 2 | 1 1 . . Storage 3 | 1 2 . . Processor 1 | . 1 . . Hackware . | . . . . Protection . | . . . . Artifact . | . . . . Weapon 10 | 2 1 2 5 Energy Gun 2 | . . 1 1 Energy Cannon 1 | . . . 1 Ballistic Gun 4 | 2 . 1 1 Ballistic Cannon . | . . . . Launcher 1 | . . . 1 Special Weapon 1 | . 1 . . Impact Weapon . | . . . . Slashing Weapon 1 | . . . 1 Piercing Weapon . | . . . . Special Melee Weapon . | . . . . Unidentified Prototypes . | . . . . Parts Lost 7 | . 2 1 4 Power 2 | . 2 . . Propulsion 3 | . . 1 2 Utility . | . . . . Weapon 2 | . . . 2 Highest Loss Streak 4 | . 2 1 4 To Critical Strikes . | . . . . Average Backups 19 | 3 13 23 24 Power . | . . 1 1 Propulsion 4 | 1 3 4 4 Utility 4 | . 3 4 5 Weapon 9 | 1 5 12 12 Tool/Special . | . . . . Unused Backups 23 | . 3 . 20 Power 1 | . . . 1 Propulsion 5 | . 2 . 3 Utility 5 | . . . 5 Weapon 11 | . 1 . 10 Tool/Special 1 | . . . 1 Average Slot Usage (%) 99 | . 99 99 99 Engine 13 | . 13 14 14 Treads 28 | . 28 28 28 Device 4 | . 10 . . Storage 14 | . 14 14 14 Processor 9 | . 3 14 14 Energy Gun 8 | . . 14 13 Ballistic Gun 18 | . 27 13 14 Peak Build Rating 10 | 7 9 10 10 Average Rating 9 | 5 7 9 9 On Entrance 6 | . 7 9 10 Avg Prop Armor Cover (%) . | . . . . Naked Turns . | . . . . Heaviest Build 92 | 12 88 90 92 Greatest Support 40 | 40 40 40 40 Greatest Overweight (x) 2 | . 2 2 2 Average Overweight (x) 1 | . . 2 2 Largest Inventory Capacity 25 | 8 25 25 25 Average Capacity 21 | 7 16 25 25 Most Carried 25 | 6 19 25 25 Average Carried 19 | 3 13 24 24 Final Capacity 25 | 8 25 25 25 Final Carried 25 | 6 18 25 23 Class Distribution -------------------- 100% | Mutant Dominant Class ---------------- Mutant | -10/Materials Mutant | -10/Mines Mutant | -10/Subcaves Resources | -11 -10 -10 -10 ----------- Run | Yrd Mat Min Sub Matter Collected 946 | 314 463 80 89 Remotely . | . . . . Salvage Created 1007 | 156 487 134 230 Parts 68 | 14 27 15 12 Haulers Intercepted 2 | . 2 . . Recyclers Shooed 1 | . 1 . . Parts Field Recycled . | . . . . Retrieved Matter . | . . . . Parts Self-Destructed 14 | . . . 14 Prevented . | . . . . Parts Restored . | . . . . Kills | -11 -10 -10 -10 ------- Run | Yrd Mat Min Sub Combat Hostiles Destroyed 22 | . 10 5 7 Guns 18 | . 10 5 3 Cannons 1 | . . . 1 AOE 3 | . . . 3 Classes Destroyed 9 | 2 4 2 1 Worker 1 | . . 1 . Tunneler 4 | 4 . . . Hauler 2 | . 2 . . Recycler 1 | 1 . . . Mechanic 1 | . 1 . . Swarmer 6 | . 3 3 . Grunt 7 | . 7 . . Sentry 2 | . . 2 . Subdweller 7 | . . . 7 Best Kill Streak 5 | 4 3 3 5 Combat Bots Only 5 | . 3 3 5 Max Kills in Single Turn 1 | 1 1 1 1 Gunslinging . | . . . . Exploded 1 | . . . 1 Melee . | . . . . Uniques/NPCs Destroyed . | . . . . Combat | -11 -10 -10 -10 -------- Run | Yrd Mat Min Sub Hostile Shots Fired 161 | . 50 30 81 Missed 50 | . 15 11 24 Hits 111 | . 35 19 57 Projectile 111 | . 35 19 57 AOE 3 | . . . 3 Critical Strikes 2 | . . . 2 Damage Taken 1440 | . 433 190 817 Core 253 | . 79 24 150 Absorbed by Shields . | . . . . Core Remaining (%) 100 | 100 . . . Volleys Fired 106 | 11 57 15 23 Largest 2 | 2 2 2 2 Hottest 100 | 40 100 85 90 Shots Fired 205 | 22 113 30 40 Gun 195 | 22 112 30 31 Cannon 4 | . . . 4 Launcher 5 | . . . 5 Special 1 | . 1 . . Kinetic 172 | 22 112 15 23 Thermal 33 | . 1 15 17 Explosive . | . . . . Electromagnetic . | . . . . Robot Hit Streak 17 | 4 17 7 15 Robot Miss Streak 8 | 3 8 3 3 Penetration Max . | . . . . Secondary Targets 6 | . 4 2 . Max Gunslinging Chain 1 | . 1 1 . Shots Hit Robots 129 | 12 70 19 28 Core Hits 54 | 7 29 7 11 Critical Kills 1 | . 1 . . Critical Parts Destroyed . | . . . . Critical Strikes 1 | . 1 . . Destroy 1 | . 1 . . Melee Attacks 2 | . . . 2 Impact . | . . . . Slashing 2 | . . . 2 Piercing . | . . . . Sneak Attacks . | . . . . Combat Hostiles . | . . . . Follow-up Attacks . | . . . . Damage Inflicted 2088 | 158 768 283 879 Guns 1513 | 158 739 274 342 Cannons 70 | . . . 70 Explosions 467 | . . . 467 Melee . | . . . . Ramming 38 | . 29 9 . Kinetic 1613 | 158 739 83 633 Thermal 437 | . . 191 246 Explosive . | . . . . Electromagnetic . | . . . . Impact . | . . . . Slashing . | . . . . Piercing . | . . . . Highest Corruption . | . . . . Average Corruption . | . . . . Corruption Purged . | . . . . Corruption Blocked . | . . . . Overload Shots . | . . . . Overflow Damage 11 | . . . 11 Projectiles . | . . . . Explosions 11 | . . . 11 Melee . | . . . . Knockbacks 1 | . 1 . . Impact 1 | . 1 . . Kinetic . | . . . . Secondary . | . . . . Self-Inflicted Damage 48 | . . . 48 Shots 1 | . . . 1 Rammed 7 | . 6 1 . Targets Rammed 8 | . 6 2 . Kicked . | . . . . Crushed 1 | . . 1 . Highest Temperature 168 | . 20 168 4 Average Temperature 51 | . 8 74 4 Received Heat Transfer 273 | . 168 27 78 Siege Activations . | . . . . Martial Activations . | . . . . Shielding Activations . | . . . . Robots Disrupted . | . . . . Combat Hostiles . | . . . . Robots Corrupted . | . . . . Combat Hostiles . | . . . . Parts Fried . | . . . . Impact Corruptions . | . . . . Robots Melted . | . . . . Combat Hostiles . | . . . . Parts Melted 1 | . . 1 . Heat Transferred 841 | . . 444 397 Parts Sabotaged . | . . . . Parts Stolen . | . . . . Parts Stripped . | . . . . Power Chain Reactions . | . . . . Alert | -11 -10 -10 -10 ------- Run | Yrd Mat Min Sub Maximum Alert Level . | . . . . Low Security (%) 100 | 100 100 100 . Level 1 . | . . . . Level 2 . | . . . . Level 3 . | . . . . Level 4 . | . . . . Level 5 . | . . . . High Security . | . . . . Max Security . | . . . . Peak Influence 70 | 10 60 70 . Initial . | . . . . Average 8 | 1 12 6 . Influence Increases 518 | 25 282 115 96 Destroy 0b10 Robot/C 320 | . 200 100 20 Destroy 0b10 Robot/NC 45 | 25 15 5 . Destroy Leader 54 | . 44 10 . Allied During Kill 1 | . . . 1 Successful Hack 22 | . 22 . . Destroy Structure 1 | . 1 . . Lose Combat Pursuer 75 | . . . 75 Influence Decreases 518 | 25 282 115 96 Time Decay 474 | 25 268 105 76 Lost Part 24 | . 14 10 . Lost Ally 20 | . . . 20 Squads Dispatched 1 | . 1 . . Investigation . | . . . . Extermination . | . . . . Reinforcement 1 | . 1 . . Assault . | . . . . Garrison . | . . . . Intercept . | . . . . Searches Triggered . | . . . . Construction Impeded . | . . . . Haulers Reinforced . | . . . . Active Scanning Responses . | . . . . Cargo Convoy Interrupts . | . . . . Stealth | -11 -10 -10 -10 --------- Run | Yrd Mat Min Sub Distress Signals . | . . . . Communications Jammed . | . . . . Distress Signals . | . . . . Times Spotted 37 | . 21 5 11 Peak Tracking Total 4 | . 4 3 4 Tactical Retreats 3 | . . . 3 Traps | -11 -10 -10 -10 ------- Run | Yrd Mat Min Sub Traps Triggered 2 | . 2 . . Indirectly . | . . . . Trap Hack Attempts . | . . . . Triggered . | . . . . Disarmed . | . . . . Reprogrammed . | . . . . Reused . | . . . . Traps Extracted . | . . . . Installed . | . . . . Triggered . | . . . . Machines | -11 -10 -10 -10 ---------- Run | Yrd Mat Min Sub Machines Disabled 1 | . . . 1 Max in Single Turn 1 | . . . 1 Machines Repaired . | . . . . Machines Dismantled . | . . . . Machines Sabotaged . | . . . . Overloaded Fab Kills . | . . . . Hacking | -11 -10 -10 -10 --------- Run | Yrd Mat Min Sub Machines Accessed 4 | . 4 . . Terminals 4 | . 4 . . Fabricators . | . . . . Repair Stations . | . . . . Recycling Units . | . . . . Scanalyzers . | . . . . Garrison Access . | . . . . Total Hacks 12 | . 12 . . Successful 8 | . 8 . . Failed 4 | . 4 . . Catastrophic . | . . . . Database Lockouts . | . . . . Manual 6 | . 6 . . Terminals 12 | . 12 . . Fabricators . | . . . . Repair Stations . | . . . . Recycling Units . | . . . . Scanalyzers . | . . . . Garrison Access . | . . . . Terminal Hacks 3 | . 3 . . Prototype ID Bank 1 | . 1 . . Locate Traps 2 | . 2 . . Fabricator Hacks . | . . . . Repair Station Hacks . | . . . . Recycling Unit Hacks . | . . . . Scanalyzer . | . . . . Garrison Access Hacks . | . . . . Unauthorized Hacks 5 | . 5 . . Terminals 5 | . 5 . . Botnet 1 | . 1 . . Skim 4 | . 4 . . Fabricators . | . . . . Repair Stations . | . . . . Recycling Units . | . . . . Scanalyzers . | . . . . Garrison Access . | . . . . Data Cores Recovered . | . . . . Used . | . . . . Hacking Detections 4 | . 4 . . Full Trace Events . | . . . . Feedback Events . | . . . . Feedback Blocked . | . . . . Robot Schematics Acquired . | . . . . Robots Built . | . . . . Authchips . | . . . . Time . | . . . . Total Robot Build Rating . | . . . . Part Schematics Acquired . | . . . . Parts Built . | . . . . Authchips . | . . . . Time . | . . . . Total Part Build Rating . | . . . . Part Studies Acquired . | . . . . Parts Repaired . | . . . . Time . | . . . . Parts Recycled . | . . . . Recycled Matter . | . . . . Retrieved Matter . | . . . . Retrieved Components . | . . . . Parts Scanalyzed . | . . . . Part Schematics Acquired . | . . . . Parts Damaged . | . . . . Bothacking | -11 -10 -10 -10 ------------ Run | Yrd Mat Min Sub Used RIF Installer . | . . . . Robots Hacked . | . . . . Non-combat . | . . . . Combat . | . . . . Robot Hacks Applied . | . . . . Relay Couplers Released . | . . . . Fabnet Peak Effective % . | . . . . Robots Rewired . | . . . . Allies Hacked . | . . . . Hacks Repelled . | . . . . Allies | -11 -10 -10 -10 -------- Run | Yrd Mat Min Sub Total Allies 2 | . . 2 . Largest Group 2 | . . 2 2 Highest-Rated Group 46 | . . 42 46 Highest-Rated Ally 31 | . . 31 31 Total Orders . | . . . . Ally Attacks 18 | . . . 18 Total Damage 219 | . . . 219 Kills 2 | . . . 2 Allies Corrupted . | . . . . Allies Melted . | . . . . Intel | -11 -10 -10 -10 ------- Run | Yrd Mat Min Sub Active Infowar (turns) 977 | 86 891 . . Seismic 977 | 86 891 . . Robot Analysis Total . | . . . . Derelict Logs Recovered 1 | . . 1 . Drone Launches . | . . . . Drone Recoveries . | . . . . Exploration | -11 -10 -10 -10 ------------- Run | Yrd Mat Min Sub Turns Passed 3250 | 149 1145 1238 718 Spaces Moved 1169 | 67 540 365 197 Core 4 | 4 . . . Treads 1165 | 63 540 365 197 Legs . | . . . . Wheels . | . . . . Hover . | . . . . Flight . | . . . . Fastest Speed 50 | 50 160 320 320 Average Speed 242 | 153 173 320 320 Slowest Speed 320 | 160 320 320 320 Overloaded Moves . | . . . . Propulsion Burnouts . | . . . . Robots Hopped . | . . . . Potential Cave-ins . | . . . . Cave-ins Triggered . | . . . . Exploration Rate (%) 43 | 6 75 76 16 Regions Visited 3 Branch Regions 2 Pre-discovered Areas 1 | . . 1 . Known Exits Taken . | . . . . Unknown Exits Taken 3 | 1 1 1 . Scrap Searched 3 | . . 1 2 Spaces Dug . | . . . . Terrain Destroyed 46 | . 1 . 45 Melee . | . . . . Projectile 2 | . 1 . 1 AOE 44 | . . . 44 Terrain Rammed . | . . . . Walls Destroyed . | . . . . Machines Disabled . | . . . . Actions | -11 -10 -10 -10 --------- Run | Yrd Mat Min Sub Total 1374 | 90 640 403 241 Wait 14 | . 6 4 4 Move 1166 | 66 539 364 197 Hop . | . . . . Pick Up 38 | 6 17 11 4 Fast Attach 11 | 7 3 1 . Attach 5 | . 1 1 3 Detach . | . . . . Swap 10 | . 4 1 5 Drop 14 | . 7 4 3 Fire 106 | 11 57 15 23 Melee 2 | . . . 2 Ram . | . . . . Kick . | . . . . Crush 8 | . 6 2 . Escape Stasis . | . . . . Rewire . | . . . . Trap . | . . . . Miscellaneous . | . . . . Route ------- -11/Scrapyard -10/Materials (discovered 3 exits: [*Mat] / [*Min x2]) -10/Mines (discovered 3 exits: [*Mat x2] / [*Sub]) -10/Subcaves (discovered 1 exit: [*Rec]) History --------- Turn | Location | Event 21 | -11/Scrapyard | Discovered new exit (range 15) 150 | -11/Scrapyard | Entered Materials 295 | -10/Materials | Discovered new exit (range 11) 309 | -10/Materials | Build established: Mutant 754 | -10/Materials | Discovered new exit (range 7) 1027 | -10/Materials | Discovered new exit (range 16) 1295 | -10/Materials | Entered Mines 1659 | -10/Mines | Assembled infested the area 1851 | -10/Mines | Received a Rocket Launcher from a helpful Derelict 2027 | -10/Mines | Discovered new exit (range 13) 2107 | -10/Mines | Learned Materials stockpile data 2121 | -10/Mines | Learned location of Storage (-7) 2213 | -10/Mines | Discovered new exit (range 5) 2485 | -10/Mines | Discovered new exit (range 14) 2533 | -10/Mines | Entered Subcaves 2533 | -10/Subcaves | Accompanied by 2 allies 2534 | -10/Subcaves | Ambushed by Subdwellers from Twisted Machinery 2534 | -10/Subcaves | Approached by a straggling Scientist 2538 | -10/Subcaves | Led the pair of lost Derelicts to an unsafe place 2959 | -10/Subcaves | Discovered new exit (range 12) 3215 | -10/Subcaves | Core integrity fell below 50% 3250 | -10/Subcaves | Core integrity fell below 20% 3251 | -10/Subcaves | Destroyed by KF-US1(R) with Subdweller Shrapnel Launcher Last Messages --------------- 03019_ Acquired 6 matter. 03080_ Acquired 12 matter. 03109_ Acquired 9 matter. 03121_ Acquired 14 matter. 03213_ Lgt. Treads destroyed. 03217_ 01-3VZ(R) destroyed. 03223_ Assault Rifle destroyed. 03223_ Destroyed Scrap Shield. 03223_ LQ-KJQ(R) destroyed. 03225_ XQ-KNL(R) destroyed. 03225_ Lgt. Treads destroyed. 03225_ Destroyed Lgt. Treads. 03229_ H9-S2C(R): "ARGHSUB!" 03232_ N2-J6A(R) affixes Scrap Shield Fragment to Scrap Shield. 03233_ N2-J6A(R) destroyed. 03239_ H9-S2C(R) destroyed. 03242_ Acquired 29 matter. 03247_ KF-US1(R): "ARGHSUB!" 03249_ Acquired Sub. Machine Gun. 03249_ Beam Cannon destroyed. Map ----- +----------------------------------------------------+ | ?????#### ##???????????????????????????????? | | #????????# #???????????????????????????????? | | ####????## ##???????????????????????????????? | | ###### #????????????????????????????????? | | ## #????????????????????????????????? | | ##????????????????????????????????? | | ##??????????#??????????????????????? | | #######??????????? ??????????????????????? | | ##????????????????? ??????? %#????????????? | | ####????????????????? ?????? ##???????????? | | ##???????????????????? ???? % ????????????? | | ###????????????????????? ???? ????????????? | | ####???????????????????? #### #?????????????? | | ##??????????????????? #?????????????? | | #########?####??###?# ;#?????????????? | | ### #### #?# #?????????????? | | # % ### #?????????????? | | ## ## !* ;##????????????? | | ?#### ## % ?????????????? | | ????## ###### ??????????????? | | ?????## #####????# #???????????????? | | ??????####???????## R #???????????????? | | ?????????????????# # #???????????????? | | ?????????????????# #?##???????????????? | | ?????????????????##### ]#??????????????????? | | ?????????????????????# @ ! #??????????????????? | | ????????????????????# = #?????????????????? | | ????????????????????# ##?????????????????? | | ????????????????????# ;#?????????????????? | | ????????????????????# #?????????????????? | | ????????????????????###; #????????????????? | | ??????????????????????## #???????????????? | | ??????????????????????? ## #??????????????? | | ??????????????????????## ##? ?????????????? | | ???????????????????????# $ ??# ????????????? | | ???????????????????????# ??? ???????????? | | ???????????????????????# #???" ???????????? | | ???????????????????????# ????" ?????????????? | | ???????????????????????# #?????"???????????????? | | ???????????????????????## ??????????????????????? | | ????????????????????????? ??????????????????????? | | ?????????????????????????????????????????????????? | | ?????????????????????????????????????????????????? | | ?????????????????????????????????????????????????? | | ?????????????????????????????????????????????????? | | ?????????????????????????????????????????????????? | | ?????????????????????????????????????????????????? | | ?????????????????????????????????????????????????? | | ?????????????????????????????????????????????????? | | ?????????????????????????????????????????????????? | +----------------------------------------------------+ Best States ------------- Heat Dissipation 25 Energy Generation 10 Energy Capacity 250 Matter Stores 300 Matter Capacity 300 Sight Range 16 Terrain Scan Density 10 Evasion (%) 40 Targeting Accuracy 5 Recoil Reduction 2 Item Schematics ----------------- None Robot Schematics ------------------ None Fabricated ------------ Nothing Repaired ---------- Nothing Studied --------- None Alien Tech Used ----------------- None Achievements -------------- None Challenges ------------ None Game ------ Seed InterceptTargetScreen Manual? 0 Play Time 00:12:31 Cumulative 948.0 hours Start 2025.11.21 @ 12:59:27 End 2025.11.23 @ 09:07:06 Sessions 1 Manual Loads 0 Difficulty Rogue Special Mode None Game No. 1608 Rogue 1608 Adventurer 0 Explorer 0 Win Type - Total 93 Types 55/1/16/15/4/0/0/1/0/1 Lore% 93 Gallery% 83 Achievement% 63 Wizard Run 0 Options --------- Layout 0 ASCII 1 Keyboard 0 Movement Numpad Keybinds 1 Fullscreen 2 Font 18/SmallcapsGlow Map View 76x50 Zoom Use 0% Tactical HUD 1 Map Filters NONE Filters NONE Steam 1 RUN: 5708de2a-7166-44e6-8ee0-35991e75f7ca